[Event "Early-Titled-Tuesday-Blitz-August-29-2023"]
[Site "Chess.com"]
[Date "2023.08.29"]
[Round "2"]
[White "Roedor"]
[Black "Blackwhite017"]
[Result "0-1"]
[WhiteElo "2415"]
[BlackElo "1997"]
[TimeControl "180+1"]
[EndTime "8:18:30 PDT"]
[Termination "Blackwhite017 won by checkmate"]

1. d4 {[%clk 0:02:57.6]} 1... d5 {[%clk 0:02:58.2]} 2. c4 {[%clk 0:02:57.3]}
2... c6 {[%clk 0:02:58.3]} 3. Nf3 {[%clk 0:02:57.2]} 3... Nf6 {[%clk 0:02:58.2]}
4. e3 {[%clk 0:02:57]} 4... g6 {[%clk 0:02:58.2]} 5. Nc3 {[%clk 0:02:56.5]} 5...
Bg7 {[%clk 0:02:58]} 6. Be2 {[%clk 0:02:56.9]} 6... O-O {[%clk 0:02:57.8]} 7.
O-O {[%clk 0:02:57.1]} 7... Bg4 {[%clk 0:02:58]} 8. Bd2 {[%clk 0:02:52.1]} 8...
Bxf3 {[%clk 0:02:56]} 9. Bxf3 {[%clk 0:02:52.4]} 9... e6 {[%clk 0:02:56]} 10.
Qe2 {[%clk 0:02:44.9]} 10... Nbd7 {[%clk 0:02:52.7]} 11. b4 {[%clk 0:02:43.8]}
11... Re8 {[%clk 0:02:39.4]} 12. Rfd1 {[%clk 0:02:39.6]} 12... dxc4 {[%clk
0:02:33.7]} 13. Qxc4 {[%clk 0:02:39.1]} 13... e5 {[%clk 0:02:33.8]} 14. Qb3
{[%clk 0:02:23]} 14... exd4 {[%clk 0:02:22.6]} 15. exd4 {[%clk 0:02:23.9]} 15...
Nb6 {[%clk 0:02:09.1]} 16. Bg5 {[%clk 0:02:21.4]} 16... Qd7 {[%clk 0:01:53.9]}
17. Rac1 {[%clk 0:02:01]} 17... h6 {[%clk 0:01:40.1]} 18. Bh4 {[%clk 0:01:59.2]}
18... Nfd5 {[%clk 0:01:18.2]} 19. Ne4 {[%clk 0:01:54.2]} 19... g5 {[%clk
0:00:25.7]} 20. Bg3 {[%clk 0:01:52]} 20... Qe7 {[%clk 0:00:20.6]} 21. Nd6 {[%clk
0:01:44.9]} 21... Red8 {[%clk 0:00:17.4]} 22. Nf5 {[%clk 0:01:42.4]} 22... Qxb4
{[%clk 0:00:13.5]} 23. h4 {[%clk 0:01:03.9]} 23... Qxb3 {[%clk 0:00:12.9]} 24.
axb3 {[%clk 0:01:04.4]} 24... Re8 {[%clk 0:00:11.8]} 25. Be5 {[%clk 0:00:31.5]}
25... Bf8 {[%clk 0:00:11.4]} 26. Bh5 {[%clk 0:00:21.7]} 26... Nd7 {[%clk
0:00:10.2]} 27. hxg5 {[%clk 0:00:18.5]} 27... hxg5 {[%clk 0:00:11.1]} 28. g3
{[%clk 0:00:17]} 28... Nxe5 {[%clk 0:00:11.1]} 29. dxe5 {[%clk 0:00:16.2]} 29...
Rxe5 {[%clk 0:00:12]} 30. Nd4 {[%clk 0:00:14.4]} 30... Rae8 {[%clk 0:00:11.8]}
31. Nf3 {[%clk 0:00:13.6]} 31... Re2 {[%clk 0:00:11.5]} 32. Nxg5 {[%clk
0:00:13.1]} 32... Rb2 {[%clk 0:00:11.9]} 33. Bxf7+ {[%clk 0:00:13.1]} 33... Kg7
{[%clk 0:00:11.4]} 34. Bxd5 {[%clk 0:00:12]} 34... cxd5 {[%clk 0:00:10.7]} 35.
Rc7+ {[%clk 0:00:12.9]} 35... Kg6 {[%clk 0:00:10.1]} 36. Nf3 {[%clk 0:00:12]}
36... Ree2 {[%clk 0:00:10.3]} 37. Nh4+ {[%clk 0:00:09.9]} 37... Kh6 {[%clk
0:00:09.2]} 38. Rxd5 {[%clk 0:00:09]} 38... Rxf2 {[%clk 0:00:07.9]} 39. Rf7
{[%clk 0:00:07.8]} 39... Rxf7 {[%clk 0:00:07.1]} 40. Rd8 {[%clk 0:00:06]} 40...
b6 {[%clk 0:00:06.9]} 41. Ra8 {[%clk 0:00:05.2]} 41... Bc5+ {[%clk 0:00:07.2]}
42. Kh1 {[%clk 0:00:03.7]} 42... Rf1# {[%clk 0:00:07.6]} 0-1

[Event "Early-Titled-Tuesday-Blitz-August-29-2023"]
[Site "Chess.com"]
[Date "2023.08.29"]
[Round "2"]
[White "ErikRonka"]
[Black "madmax011"]
[Result "1-0"]
[WhiteElo "2500"]
[BlackElo "2283"]
[TimeControl "180+1"]
[EndTime "8:18:34 PDT"]
[Termination "ErikRonka won by resignation"]

1. e4 {[%clk 0:03:00.9]} 1... c5 {[%clk 0:03:00]} 2. Nf3 {[%clk 0:02:59.2]} 2...
d6 {[%clk 0:03:00.1]} 3. d4 {[%clk 0:02:59.1]} 3... cxd4 {[%clk 0:03:01]} 4.
Nxd4 {[%clk 0:02:59.8]} 4... Nf6 {[%clk 0:03:01.7]} 5. Nc3 {[%clk 0:03:00]} 5...
a6 {[%clk 0:03:02.4]} 6. Nb3 {[%clk 0:02:52.7]} 6... Nc6 {[%clk 0:03:00.7]} 7.
Be3 {[%clk 0:02:50.3]} 7... e6 {[%clk 0:02:58.6]} 8. f3 {[%clk 0:02:49.7]} 8...
b5 {[%clk 0:02:55.7]} 9. g4 {[%clk 0:02:49.2]} 9... Be7 {[%clk 0:02:54.8]} 10.
Qd2 {[%clk 0:02:48.3]} 10... Bb7 {[%clk 0:02:54.1]} 11. O-O-O {[%clk 0:02:44.3]}
11... Rc8 {[%clk 0:02:53.1]} 12. h4 {[%clk 0:02:38]} 12... Qc7 {[%clk 0:02:52]}
13. Kb1 {[%clk 0:02:29.2]} 13... Ne5 {[%clk 0:02:48.7]} 14. Be2 {[%clk
0:01:51.7]} 14... d5 {[%clk 0:02:47.4]} 15. g5 {[%clk 0:01:34.8]} 15... Nfd7
{[%clk 0:02:29]} 16. exd5 {[%clk 0:01:34.2]} 16... exd5 {[%clk 0:02:29.4]} 17.
a3 {[%clk 0:01:27.5]} 17... Nc4 {[%clk 0:02:26.7]} 18. Bxc4 {[%clk 0:01:18.5]}
18... dxc4 {[%clk 0:02:22.9]} 19. Nd4 {[%clk 0:01:17.9]} 19... O-O {[%clk
0:02:06.6]} 20. Nf5 {[%clk 0:01:17.3]} 20... Bc5 {[%clk 0:01:41]} 21. Bf4 {[%clk
0:01:14.4]} 21... Qa5 {[%clk 0:01:29.6]} 22. Nd5 {[%clk 0:00:52.2]} 22... Qxd2
{[%clk 0:01:17.8]} 23. Rxd2 {[%clk 0:00:53.1]} 23... Rfe8 {[%clk 0:00:57.9]} 24.
Nde7+ {[%clk 0:00:33]} 24... Bxe7 {[%clk 0:00:48.1]} 25. Rxd7 {[%clk 0:00:33.5]}
25... Bxf3 {[%clk 0:00:34]} 26. Rf1 {[%clk 0:00:20.5]} 26... Bg2 {[%clk
0:00:28.9]} 27. Rf2 {[%clk 0:00:20.7]} 27... Bh3 {[%clk 0:00:25.5]} 28. Nxe7+
{[%clk 0:00:20.4]} 28... Kf8 {[%clk 0:00:23.2]} 29. Nxc8 {[%clk 0:00:20.3]}
29... Bxd7 {[%clk 0:00:21.8]} 30. Nd6 {[%clk 0:00:20.5]} 30... Re1+ {[%clk
0:00:21.8]} 31. Ka2 {[%clk 0:00:20.5]} 31... Be6 {[%clk 0:00:21.8]} 32. c3
{[%clk 0:00:15.2]} 32... Ke7 {[%clk 0:00:20]} 33. Nb7 {[%clk 0:00:15]} 33... Rh1
{[%clk 0:00:15.4]} 34. Nc5 {[%clk 0:00:11.9]} 34... Bf5 {[%clk 0:00:11.6]} 35.
a4 {[%clk 0:00:11.3]} 35... Bb1+ {[%clk 0:00:10.2]} 36. Ka3 {[%clk 0:00:11.4]}
36... bxa4 {[%clk 0:00:10.7]} 37. Nxa6 {[%clk 0:00:10.8]} 37... Rxh4 {[%clk
0:00:10.5]} 38. Nc5 {[%clk 0:00:10.7]} 38... f6 {[%clk 0:00:08.4]} 39. gxf6+
{[%clk 0:00:10.7]} 39... gxf6 {[%clk 0:00:09.2]} 40. Nxa4 {[%clk 0:00:11.3]}
40... Bd3 {[%clk 0:00:09.2]} 41. Nc5 {[%clk 0:00:11.3]} 41... Bf5 {[%clk
0:00:09]} 42. Be3 {[%clk 0:00:10.9]} 42... Rh5 {[%clk 0:00:08.8]} 43. Bd4 {[%clk
0:00:11]} 43... Rg5 {[%clk 0:00:07.1]} 44. Kb4 {[%clk 0:00:10.8]} 44... h5
{[%clk 0:00:07.3]} 45. Ne4 {[%clk 0:00:10.6]} 45... Bxe4 {[%clk 0:00:07.3]} 46.
Bxf6+ {[%clk 0:00:10.8]} 1-0

[Event "Early-Titled-Tuesday-Blitz-August-29-2023"]
[Site "Chess.com"]
[Date "2023.08.29"]
[Round "2"]
[White "Frolyanov_D"]
[Black "AsaHoffmann"]
[Result "1-0"]
[WhiteElo "2602"]
[BlackElo "2374"]
[TimeControl "180+1"]
[EndTime "8:18:36 PDT"]
[Termination "Frolyanov_D won on time"]

1. d4 {[%clk 0:03:00.9]} 1... Nf6 {[%clk 0:02:54.6]} 2. c4 {[%clk 0:02:57.6]}
2... c5 {[%clk 0:02:54.2]} 3. d5 {[%clk 0:02:56.4]} 3... e5 {[%clk 0:02:54.2]}
4. Nc3 {[%clk 0:02:54.9]} 4... d6 {[%clk 0:02:54.1]} 5. e4 {[%clk 0:02:50.7]}
5... Be7 {[%clk 0:02:53.9]} 6. h3 {[%clk 0:02:47.4]} 6... Nbd7 {[%clk
0:02:53.5]} 7. g4 {[%clk 0:02:47]} 7... Nf8 {[%clk 0:02:53.3]} 8. g5 {[%clk
0:02:44.3]} 8... N6d7 {[%clk 0:02:52.9]} 9. h4 {[%clk 0:02:44.3]} 9... h6 {[%clk
0:02:51.8]} 10. gxh6 {[%clk 0:02:41.2]} 10... gxh6 {[%clk 0:02:50.8]} 11. h5
{[%clk 0:02:33.1]} 11... Bg5 {[%clk 0:02:49.3]} 12. Bxg5 {[%clk 0:02:16.5]}
12... hxg5 {[%clk 0:02:44.5]} 13. Nge2 {[%clk 0:02:10.1]} 13... Nh7 {[%clk
0:02:41.7]} 14. Ng3 {[%clk 0:02:08.9]} 14... Ndf6 {[%clk 0:02:40.8]} 15. Be2
{[%clk 0:02:03.9]} 15... a6 {[%clk 0:02:39.1]} 16. h6 {[%clk 0:02:01.5]} 16...
Bd7 {[%clk 0:02:33.4]} 17. Qd2 {[%clk 0:01:51.9]} 17... Qa5 {[%clk 0:02:17.1]}
18. a4 {[%clk 0:01:40.7]} 18... Ke7 {[%clk 0:01:56]} 19. Nd1 {[%clk 0:01:38.3]}
19... Qxd2+ {[%clk 0:01:39]} 20. Kxd2 {[%clk 0:01:39.2]} 20... b5 {[%clk
0:01:38.8]} 21. Ne3 {[%clk 0:01:36.1]} 21... bxa4 {[%clk 0:01:29]} 22. Nef5+
{[%clk 0:01:35]} 22... Bxf5 {[%clk 0:01:28.2]} 23. Nxf5+ {[%clk 0:01:35.7]}
23... Kd7 {[%clk 0:01:28.2]} 24. Bd3 {[%clk 0:01:26.5]} 24... Rhb8 {[%clk
0:01:26.3]} 25. Kc1 {[%clk 0:00:54.8]} 25... Rb4 {[%clk 0:01:22.4]} 26. Ne3
{[%clk 0:00:54.9]} 26... Rab8 {[%clk 0:01:19]} 27. Ra2 {[%clk 0:00:54]} 27... g4
{[%clk 0:01:08.3]} 28. Bc2 {[%clk 0:00:50.1]} 28... Rg8 {[%clk 0:00:57.6]} 29.
Bxa4+ {[%clk 0:00:47.5]} 29... Kc7 {[%clk 0:00:55.2]} 30. Bc2 {[%clk 0:00:47.3]}
30... g3 {[%clk 0:00:53.4]} 31. fxg3 {[%clk 0:00:47.9]} 31... Rxg3 {[%clk
0:00:52.9]} 32. Nf5 {[%clk 0:00:44.5]} 32... Rg2 {[%clk 0:00:47.7]} 33. Rxa6
{[%clk 0:00:43.3]} 33... Rxc4 {[%clk 0:00:45.4]} 34. Ne3 {[%clk 0:00:43.9]}
34... Rgxc2+ {[%clk 0:00:38]} 35. Nxc2 {[%clk 0:00:44.8]} 35... Nxe4 {[%clk
0:00:37.8]} 36. Ra7+ {[%clk 0:00:42.8]} 36... Kb6 {[%clk 0:00:35.4]} 37. Rxf7
{[%clk 0:00:43.7]} 37... Neg5 {[%clk 0:00:31.8]} 38. Rg7 {[%clk 0:00:40.1]}
38... e4 {[%clk 0:00:30.9]} 39. Rg1 {[%clk 0:00:34.2]} 39... e3 {[%clk
0:00:28.6]} 40. R7xg5 {[%clk 0:00:28.2]} 40... Nxg5 {[%clk 0:00:17.8]} 41. Rxg5
{[%clk 0:00:29.1]} 41... e2 {[%clk 0:00:16.4]} 42. Rg1 {[%clk 0:00:28.7]} 42...
Rh4 {[%clk 0:00:15.2]} 43. Re1 {[%clk 0:00:28.3]} 43... Rxh6 {[%clk 0:00:14.7]}
44. Rxe2 {[%clk 0:00:28.9]} 44... Rh5 {[%clk 0:00:14.8]} 45. Ne3 {[%clk
0:00:28.7]} 45... Kb5 {[%clk 0:00:14.2]} 46. Kc2 {[%clk 0:00:28.9]} 46... c4
{[%clk 0:00:14.2]} 47. Rd2 {[%clk 0:00:28.8]} 47... Kc5 {[%clk 0:00:13.6]} 48.
Nd1 {[%clk 0:00:28.2]} 48... Rxd5 {[%clk 0:00:12.6]} 49. Rxd5+ {[%clk
0:00:27.2]} 49... Kxd5 {[%clk 0:00:12.8]} 50. Kc3 {[%clk 0:00:24.8]} 50... Kc5
{[%clk 0:00:12.3]} 51. Ne3 {[%clk 0:00:25]} 51... d5 {[%clk 0:00:12.2]} 52. Nc2
{[%clk 0:00:25.6]} 52... Kc6 {[%clk 0:00:10.2]} 53. Nd4+ {[%clk 0:00:26.5]}
53... Kc5 {[%clk 0:00:10]} 54. Nf5 {[%clk 0:00:26.6]} 54... Kc6 {[%clk
0:00:09.9]} 55. Kb4 {[%clk 0:00:25.8]} 55... Kb6 {[%clk 0:00:08]} 56. Nd4 {[%clk
0:00:25.6]} 56... Kc7 {[%clk 0:00:06.9]} 57. Kc5 {[%clk 0:00:25.4]} 57... Kb7
{[%clk 0:00:06.3]} 58. Kxd5 {[%clk 0:00:25.5]} 1-0

[Event "Early-Titled-Tuesday-Blitz-August-29-2023"]
[Site "Chess.com"]
[Date "2023.08.29"]
[Round "2"]
[White "alexrustemov"]
[Black "zabivol_mc"]
[Result "1-0"]
[WhiteElo "2867"]
[BlackElo "2555"]
[TimeControl "180+1"]
[EndTime "8:18:37 PDT"]
[Termination "alexrustemov won by checkmate"]

1. d4 {[%clk 0:03:00.9]} 1... d5 {[%clk 0:02:58.8]} 2. c4 {[%clk 0:03:01.3]}
2... e6 {[%clk 0:02:58.9]} 3. Nc3 {[%clk 0:03:01.7]} 3... Nf6 {[%clk 0:02:58.5]}
4. Nf3 {[%clk 0:03:01.8]} 4... Be7 {[%clk 0:02:56]} 5. Bg5 {[%clk 0:03:01.7]}
5... h6 {[%clk 0:02:53.4]} 6. Bxf6 {[%clk 0:03:01.8]} 6... Bxf6 {[%clk
0:02:53.2]} 7. e3 {[%clk 0:03:02.5]} 7... O-O {[%clk 0:02:52.7]} 8. Rc1 {[%clk
0:03:03]} 8... c6 {[%clk 0:02:33.1]} 9. Bd3 {[%clk 0:03:03.2]} 9... Nd7 {[%clk
0:02:32.7]} 10. O-O {[%clk 0:03:03.6]} 10... dxc4 {[%clk 0:02:28.7]} 11. Bxc4
{[%clk 0:03:04.5]} 11... e5 {[%clk 0:02:29.2]} 12. h3 {[%clk 0:03:04.7]} 12...
exd4 {[%clk 0:02:25.9]} 13. exd4 {[%clk 0:03:05.3]} 13... Nb6 {[%clk 0:02:23.9]}
14. Bb3 {[%clk 0:03:05.7]} 14... Bf5 {[%clk 0:02:18.8]} 15. Re1 {[%clk
0:03:05.9]} 15... Re8 {[%clk 0:01:55.4]} 16. Rxe8+ {[%clk 0:02:59.9]} 16... Qxe8
{[%clk 0:01:56.3]} 17. Qd2 {[%clk 0:02:59.6]} 17... Rd8 {[%clk 0:01:52.1]} 18.
Re1 {[%clk 0:02:54.7]} 18... Qd7 {[%clk 0:01:50.5]} 19. Qf4 {[%clk 0:02:50]}
19... Bg6 {[%clk 0:01:26.1]} 20. Ne5 {[%clk 0:02:46.3]} 20... Bxe5 {[%clk
0:01:24.3]} 21. dxe5 {[%clk 0:02:46.8]} 21... Nd5 {[%clk 0:01:23.8]} 22. Bxd5
{[%clk 0:02:35.5]} 22... cxd5 {[%clk 0:01:24.7]} 23. Qd4 {[%clk 0:02:34.9]}
23... Qc6 {[%clk 0:01:09.8]} 24. Rd1 {[%clk 0:02:30.1]} 24... Kh7 {[%clk
0:00:51.6]} 25. f4 {[%clk 0:02:27.7]} 25... Bf5 {[%clk 0:00:50.2]} 26. g4 {[%clk
0:02:25.8]} 26... Bc8 {[%clk 0:00:46.5]} 27. f5 {[%clk 0:02:22]} 27... b5 {[%clk
0:00:45]} 28. a3 {[%clk 0:02:20.8]} 28... a5 {[%clk 0:00:45]} 29. Kh2 {[%clk
0:02:05.4]} 29... Bb7 {[%clk 0:00:44.2]} 30. Rd2 {[%clk 0:01:57.6]} 30... b4
{[%clk 0:00:43.2]} 31. axb4 {[%clk 0:01:57.2]} 31... axb4 {[%clk 0:00:43.6]} 32.
Ne2 {[%clk 0:01:53.4]} 32... b3 {[%clk 0:00:40.2]} 33. Nc3 {[%clk 0:01:49.8]}
33... Qa6 {[%clk 0:00:39.7]} 34. Kg2 {[%clk 0:01:44.7]} 34... Rc8 {[%clk
0:00:39.7]} 35. Kf2 {[%clk 0:01:37.8]} 35... Rc4 {[%clk 0:00:38.2]} 36. Qd3
{[%clk 0:01:36.6]} 36... Qc6 {[%clk 0:00:33.8]} 37. Ne2 {[%clk 0:01:04.2]} 37...
d4 {[%clk 0:00:30.1]} 38. Nf4 {[%clk 0:00:53.4]} 38... Rc2 {[%clk 0:00:30.3]}
39. f6+ {[%clk 0:00:42.6]} 39... g6 {[%clk 0:00:29.1]} 40. e6 {[%clk 0:00:37.1]}
40... Ba6 {[%clk 0:00:15.9]} 41. Qxd4 {[%clk 0:00:30.1]} 41... Rxd2+ {[%clk
0:00:14.6]} 42. Qxd2 {[%clk 0:00:30.1]} 42... Qc5+ {[%clk 0:00:14.2]} 43. Qe3
{[%clk 0:00:25.7]} 43... Qc2+ {[%clk 0:00:14.4]} 44. Kg3 {[%clk 0:00:26.3]}
44... Qxb2 {[%clk 0:00:09.7]} 45. exf7 {[%clk 0:00:24.8]} 45... Qxf6 {[%clk
0:00:09.4]} 46. Qe8 {[%clk 0:00:17.1]} 46... Qc3+ {[%clk 0:00:09.5]} 47. Kh4
{[%clk 0:00:12]} 47... Qf6+ {[%clk 0:00:09.6]} 48. Kg3 {[%clk 0:00:11.8]} 48...
Qc3+ {[%clk 0:00:10.4]} 49. Kf2 {[%clk 0:00:10.4]} 49... Qd2+ {[%clk 0:00:10.3]}
50. Ne2 {[%clk 0:00:07.6]} 50... Bxe2 {[%clk 0:00:08.7]} 51. Qg8# {[%clk
0:00:07.1]} 1-0

[Event "Early-Titled-Tuesday-Blitz-August-29-2023"]
[Site "Chess.com"]
[Date "2023.08.29"]
[Round "2"]
[White "Mikhail_Bryakin"]
[Black "Ramosha"]
[Result "1/2-1/2"]
[WhiteElo "2829"]
[BlackElo "2566"]
[TimeControl "180+1"]
[EndTime "8:18:37 PDT"]
[Termination "Game drawn - insufficient material"]

1. Nf3 {[%clk 0:02:56.1]} 1... Nf6 {[%clk 0:02:59.4]} 2. c4 {[%clk 0:02:54.3]}
2... c5 {[%clk 0:02:58.3]} 3. b3 {[%clk 0:02:54.4]} 3... d5 {[%clk 0:02:58.6]}
4. cxd5 {[%clk 0:02:54.3]} 4... Nxd5 {[%clk 0:02:59.5]} 5. Bb2 {[%clk
0:02:54.8]} 5... Nc6 {[%clk 0:02:59.9]} 6. g3 {[%clk 0:02:55.2]} 6... Bf5 {[%clk
0:02:59.9]} 7. d3 {[%clk 0:02:54.7]} 7... Bg6 {[%clk 0:03:00.3]} 8. Bg2 {[%clk
0:02:54.8]} 8... f6 {[%clk 0:03:00.8]} 9. O-O {[%clk 0:02:47.1]} 9... e5 {[%clk
0:03:00.7]} 10. Nc3 {[%clk 0:02:42.6]} 10... Nc7 {[%clk 0:02:59.8]} 11. Nh4
{[%clk 0:02:33.6]} 11... Qd7 {[%clk 0:02:58.9]} 12. a3 {[%clk 0:02:31.6]} 12...
Be7 {[%clk 0:02:57.3]} 13. Nxg6 {[%clk 0:02:28]} 13... hxg6 {[%clk 0:02:57.3]}
14. b4 {[%clk 0:02:26.8]} 14... cxb4 {[%clk 0:02:56.5]} 15. axb4 {[%clk
0:02:26.4]} 15... Bxb4 {[%clk 0:02:56.6]} 16. Qb3 {[%clk 0:02:25.4]} 16... a5
{[%clk 0:02:56.2]} 17. Na4 {[%clk 0:02:21]} 17... Qd6 {[%clk 0:02:48]} 18. Nb6
{[%clk 0:02:16.1]} 18... Rd8 {[%clk 0:02:45.1]} 19. Rfc1 {[%clk 0:02:01.1]}
19... Ne6 {[%clk 0:02:41.5]} 20. Nc4 {[%clk 0:01:55.7]} 20... Qd7 {[%clk
0:02:39.9]} 21. Nb6 {[%clk 0:01:53.7]} 21... Qd6 {[%clk 0:02:39.3]} 22. Nd5
{[%clk 0:01:52.8]} 22... Ned4 {[%clk 0:02:29.2]} 23. Qd1 {[%clk 0:01:50]} 23...
O-O {[%clk 0:02:27.3]} 24. e3 {[%clk 0:01:49.4]} 24... Nf5 {[%clk 0:02:25.9]}
25. Nxb4 {[%clk 0:01:43.8]} 25... Nxb4 {[%clk 0:02:19.7]} 26. Rxa5 {[%clk
0:01:14.1]} 26... Qxd3 {[%clk 0:02:16.2]} 27. Qe1 {[%clk 0:01:04.1]} 27... Nc2
{[%clk 0:02:02.9]} 28. Qc3 {[%clk 0:01:00.8]} 28... b6 {[%clk 0:01:35.4]} 29.
Ra2 {[%clk 0:00:42.8]} 29... Qxc3 {[%clk 0:00:57.1]} 30. Bxc3 {[%clk 0:00:42.7]}
30... Ncxe3 {[%clk 0:00:58]} 31. fxe3 {[%clk 0:00:41.9]} 31... Nxe3 {[%clk
0:00:58.9]} 32. Bf3 {[%clk 0:00:35.6]} 32... Rc8 {[%clk 0:00:56.5]} 33. Bd2
{[%clk 0:00:34.2]} 33... Rxc1+ {[%clk 0:00:54.9]} 34. Bxc1 {[%clk 0:00:35.1]}
34... Nf5 {[%clk 0:00:55.7]} 35. Ra6 {[%clk 0:00:28.5]} 35... Rb8 {[%clk
0:00:55.2]} 36. Bb2 {[%clk 0:00:26.5]} 36... b5 {[%clk 0:00:52.4]} 37. Bd5+
{[%clk 0:00:26.5]} 37... Kh7 {[%clk 0:00:52.1]} 38. Kf2 {[%clk 0:00:25.2]} 38...
Kh6 {[%clk 0:00:50.2]} 39. g4 {[%clk 0:00:25.4]} 39... Ne7 {[%clk 0:00:49.2]}
40. Be4 {[%clk 0:00:25.5]} 40... b4 {[%clk 0:00:44.5]} 41. h4 {[%clk 0:00:25.2]}
41... Rc8 {[%clk 0:00:43]} 42. Ke3 {[%clk 0:00:24.6]} 42... Rd8 {[%clk
0:00:40.3]} 43. Rb6 {[%clk 0:00:21.3]} 43... Nd5+ {[%clk 0:00:33.3]} 44. Bxd5
{[%clk 0:00:21.1]} 44... Rxd5 {[%clk 0:00:34.2]} 45. Rxb4 {[%clk 0:00:21.4]}
45... g5 {[%clk 0:00:31.9]} 46. h5 {[%clk 0:00:19]} 46... Rd1 {[%clk 0:00:31.8]}
47. Ke2 {[%clk 0:00:18.4]} 47... Rg1 {[%clk 0:00:31.4]} 48. Kf3 {[%clk
0:00:18.9]} 48... Rf1+ {[%clk 0:00:31.5]} 49. Kg2 {[%clk 0:00:18.9]} 49... Rb1
{[%clk 0:00:30.4]} 50. Rb8 {[%clk 0:00:18]} 50... Kh7 {[%clk 0:00:14.8]} 51.
Bxe5 {[%clk 0:00:17.9]} 51... Rxb8 {[%clk 0:00:15.7]} 52. Bxb8 {[%clk 0:00:18]}
52... g6 {[%clk 0:00:16.4]} 53. Kf3 {[%clk 0:00:11.8]} 53... gxh5 {[%clk
0:00:16.1]} 54. gxh5 {[%clk 0:00:10.3]} 54... Kh6 {[%clk 0:00:16.5]} 55. Kg4
{[%clk 0:00:10.6]} 55... f5+ {[%clk 0:00:17]} 56. Kxf5 {[%clk 0:00:11.3]} 56...
Kxh5 {[%clk 0:00:17.9]} 57. Bf4 {[%clk 0:00:11.4]} 57... g4 {[%clk 0:00:18.8]}
58. Bg3 {[%clk 0:00:11.8]} 58... Kh6 {[%clk 0:00:18.8]} 59. Kxg4 {[%clk
0:00:12.7]} 1/2-1/2

[Event "Early-Titled-Tuesday-Blitz-August-29-2023"]
[Site "Chess.com"]
[Date "2023.08.29"]
[Round "2"]
[White "Tonychess32"]
[Black "Apocalyps999"]
[Result "1-0"]
[WhiteElo "2522"]
[BlackElo "2340"]
[TimeControl "180+1"]
[EndTime "8:18:40 PDT"]
[Termination "Tonychess32 won by resignation"]

1. e4 {[%clk 0:03:00]} 1... e5 {[%clk 0:02:59.8]} 2. Bc4 {[%clk 0:03:00.1]} 2...
Nf6 {[%clk 0:02:58.3]} 3. d3 {[%clk 0:03:00.3]} 3... c6 {[%clk 0:02:57.8]} 4.
Nf3 {[%clk 0:03:00.4]} 4... d5 {[%clk 0:02:54.8]} 5. Bb3 {[%clk 0:03:00.4]} 5...
dxe4 {[%clk 0:02:51.3]} 6. Ng5 {[%clk 0:02:45.8]} 6... Be6 {[%clk 0:02:20.4]} 7.
Nxe6 {[%clk 0:02:15.1]} 7... fxe6 {[%clk 0:02:21.3]} 8. Bxe6 {[%clk 0:02:15.4]}
8... exd3 {[%clk 0:02:19.6]} 9. O-O {[%clk 0:02:06.2]} 9... Na6 {[%clk
0:01:54.6]} 10. cxd3 {[%clk 0:01:43.6]} 10... Nc5 {[%clk 0:01:42.1]} 11. Bc4
{[%clk 0:01:43.1]} 11... b5 {[%clk 0:01:34.3]} 12. Bb3 {[%clk 0:01:41.1]} 12...
Qxd3 {[%clk 0:01:19.8]} 13. Be3 {[%clk 0:01:23]} 13... Qxd1 {[%clk 0:01:13.5]}
14. Bxd1 {[%clk 0:01:22.8]} 14... O-O-O {[%clk 0:00:53.9]} 15. Nc3 {[%clk
0:01:11.4]} 15... Kb7 {[%clk 0:00:39.6]} 16. Bc2 {[%clk 0:01:02.9]} 16... Be7
{[%clk 0:00:33.6]} 17. Rfe1 {[%clk 0:01:00.2]} 17... Rhe8 {[%clk 0:00:29]} 18.
h3 {[%clk 0:00:50.5]} 18... Nd3 {[%clk 0:00:24]} 19. Reb1 {[%clk 0:00:50]} 19...
b4 {[%clk 0:00:18.3]} 20. Ne2 {[%clk 0:00:42.5]} 20... e4 {[%clk 0:00:18.7]} 21.
Ng3 {[%clk 0:00:41.8]} 21... g6 {[%clk 0:00:17.1]} 22. a3 {[%clk 0:00:41.2]}
22... Bd6 {[%clk 0:00:17.1]} 23. axb4 {[%clk 0:00:39.5]} 23... a6 {[%clk
0:00:16]} 24. Ne2 {[%clk 0:00:29]} 24... Nxb4 {[%clk 0:00:14.8]} 25. Bb3 {[%clk
0:00:27.6]} 25... Be5 {[%clk 0:00:14.5]} 26. Nc3 {[%clk 0:00:24.2]} 26... Nbd5
{[%clk 0:00:11.8]} 27. Na4 {[%clk 0:00:22.8]} 27... Nxe3 {[%clk 0:00:11.2]} 28.
fxe3 {[%clk 0:00:22.1]} 28... Re7 {[%clk 0:00:11.4]} 29. Bc4 {[%clk 0:00:21.3]}
29... Ra8 {[%clk 0:00:10.1]} 30. Nc5+ {[%clk 0:00:21.1]} 30... Kb6 {[%clk
0:00:10.6]} 31. Na4+ {[%clk 0:00:17.5]} 31... Kc7 {[%clk 0:00:10.5]} 32. Rc1
{[%clk 0:00:16.7]} 32... Bd6 {[%clk 0:00:08.8]} 33. Rab1 {[%clk 0:00:16.5]}
33... a5 {[%clk 0:00:09.2]} 34. Bb5 {[%clk 0:00:14.7]} 34... c5 {[%clk
0:00:06.9]} 35. Nxc5 {[%clk 0:00:11.8]} 35... Bxc5 {[%clk 0:00:07.2]} 36. Rxc5+
{[%clk 0:00:12.3]} 36... Kb6 {[%clk 0:00:07.9]} 37. Rbc1 {[%clk 0:00:12.4]}
37... Nd7 {[%clk 0:00:05.9]} 38. Rd5 {[%clk 0:00:10.4]} 38... Nf6 {[%clk
0:00:04.8]} 39. Rc6+ {[%clk 0:00:10.4]} 39... Kb7 {[%clk 0:00:04.7]} 40. Rxf6
{[%clk 0:00:10.5]} 40... Rc7 {[%clk 0:00:03.7]} 41. Rd2 {[%clk 0:00:07.8]} 41...
Rac8 {[%clk 0:00:04.6]} 42. Kf2 {[%clk 0:00:07]} 42... Rc1 {[%clk 0:00:05.2]}
43. Ba6+ {[%clk 0:00:06.4]} 43... Ka7 {[%clk 0:00:04.2]} 44. Bxc8 {[%clk
0:00:07]} 44... Rxc8 {[%clk 0:00:04.6]} 45. Rd7+ {[%clk 0:00:07]} 45... Kb8
{[%clk 0:00:03.8]} 46. Rb6+ {[%clk 0:00:06.6]} 46... Ka8 {[%clk 0:00:03.8]} 47.
Ra6+ {[%clk 0:00:06.2]} 47... Kb8 {[%clk 0:00:03.7]} 48. Rxa5 {[%clk 0:00:06.3]}
48... Rd8 {[%clk 0:00:03.8]} 49. Rxd8+ {[%clk 0:00:06.3]} 49... Kc7 {[%clk
0:00:04.7]} 50. Raa8 {[%clk 0:00:06.2]} 1-0